fUST/lending_fUST_20251003
["ID","MTS","AMOUNT","RATE_DAILY","PERIOD"]
[388883995,1759464682336,-500.0,0.00018036,2]
[388883996,1759464682363,-151.0,0.00018036,2]
[388883997,1759464682394,-151.0,0.00018036,2]
[388883998,1759464682729,-19.88657432,0.00018036,2]
[388883999,1759464682746,-151.0,0.00018036,2]
[388884000,1759464682760,-906.90342568,0.00018036,2]
[388884001,1759464682770,-11.27342568,0.00018036,2]
[388884002,1759464684477,154.478798,0.00025,30]
[388884003,1759464684883,154.478798,0.00025,30]
[388884004,1759464685196,154.478798,0.00025,30]
[388884005,1759464686040,-500.0,0.00018035,2]
[388884006,1759464686071,-142.94171845,0.00018036,2]
[388884007,1759464686100,-4244.5665631,0.00018036,2]
[388884008,1759464686157,-224.9934369,0.00018036,2]
[388884009,1759464689925,-500.0,0.00018035,2]
[388884010,1759464689953,-500.0,0.00018036,2]
[388884011,1759464689980,-500.0,0.00018036,2]
[388884012,1759464690007,-190.8,0.00018036,2]
[388884013,1759464690033,-519.36,0.00018036,2]
[388884014,1759464690060,-500.0,0.00018036,2]
[388884015,1759464690088,-1506.41,0.00018036,2]
[388884016,1759464690115,-500.0,0.00018036,2]
[388884017,1759464690143,-277.60418961,0.00018036,2]
[388884018,1759464690281,-11.66162078,0.00018036,2]
[388884019,1759464693958,-637.36,0.00018036,2]
[388884020,1759464693986,-500.0,0.00018036,2]
[388884021,1759464694014,-592.78,0.00018036,2]
[388884022,1759464694045,-500.0,0.00018036,2]
[388884023,1759464694076,-500.0,0.00018036,2]
[388884024,1759464694106,-1265.83,0.00018036,2]
[388884025,1759464694134,-500.0,0.00018036,2]
[388884026,1759464694163,-500.0,0.00018036,2]
[388884027,1759464694299,-8.07,0.00018036,2]
[388884028,1759464703012,-249.79135204,0.00018028,2]
[388884029,1759464703044,-1201.59,0.00018035,2]
[388884030,1759464703076,-581.96,0.00018035,2]
[388884031,1759464703105,-500.0,0.00018035,2]
[388884032,1759464703135,-1451.47,0.00018035,2]
[388884033,1759464703163,-989.32729592,0.00018036,2]
[388884034,1759464703257,-51.73270408,0.00018036,2]
[388884035,1759464703286,-1365.44,0.00018036,2]
[388884036,1759464703315,-500.0,0.00018036,2]
[388884037,1759464703342,-500.0,0.00018036,2]
[388884038,1759464703369,-629.12,0.00018036,2]
[388884039,1759464703396,-500.0,0.00018036,2]
[388884040,1759464703428,-500.0,0.00018036,2]
[388884041,1759464703457,-885.05,0.00018036,2]
[388884042,1759464703604,-2165.16,0.00018036,2]
[388884043,1759464703859,-500.89,0.00018034,2]
[388884044,1759464703869,-5357.85729592,0.00018036,2]
[388884045,1759464705005,-311.83270408,0.00018036,2]
[388884046,1759464705034,-928.98,0.00018036,2]
[388884047,1759464705062,-500.0,0.00018036,2]
[388884048,1759464705091,-500.0,0.00018036,2]
[388884049,1759464705176,-5518.38459184,0.00018036,2]
[388884050,1759464711235,-500.0,0.00018035,2]
[388884051,1759464711265,-558.09,0.00018035,2]
[388884052,1759464711296,-3237.74408754,0.00018036,2]
[388884053,1759464711345,-1408.34182492,0.00018036,2]
[388884054,1759464711438,-2487.54,0.00018036,2]
[388884055,1759464711465,-500.0,0.00018036,2]
[388884056,1759464711515,-4024.93,0.00018037,5]
[388884057,1759464713112,-500.0,0.00018035,2]
[388884058,1759464713142,-2724.1573778,0.00018037,5]
[388884059,1759464713181,-3551.6952444,0.00018037,5]
[388884060,1759464719133,-891.92,0.00018035,2]
[388884061,1759464719162,-500.0,0.00018036,2]
[388884062,1759464719192,-934.01,0.00018036,2]
[388884063,1759464719221,-500.0,0.00018036,2]
[388884064,1759464719250,-500.0,0.00018037,2]
[388884065,1759464719278,-500.0,0.00018037,2]
[388884066,1759464719306,-500.0,0.00018037,2]
[388884067,1759464719336,-324.62413102,0.00018037,2]
[388884068,1759464719364,-153.39683377,0.00018037,2]
[388884069,1759464719488,-1289.41,0.00018035,2]
[388884070,1759464719515,-736.99,0.00018037,2]
[388884071,1759464719542,-500.0,0.00018037,2]
[388884072,1759464719570,-586.45,0.00018037,2]
[388884073,1759464719598,-500.0,0.00018037,2]
[388884074,1759464719625,-919.44,0.00018037,2]
[388884075,1759464719899,-935.43,0.00018037,2]
[388884076,1759464719909,-425.60096479,0.00018037,2]
[388884077,1759464725764,5000.0,0.00018011,2]
[388884078,1759464753716,-500.0,0.00018034,2]
[388884079,1759464753746,-1200.0,0.00018034,2]
[388884080,1759464753775,-1019.48,0.00018034,2]
[388884081,1759464753802,-2008.75,0.00018035,2]
[388884082,1759464753898,-543.55,0.00018035,2]
[388884083,1759464753966,-1710.25,0.00018035,2]
[388884084,1759464753998,-221.77478971,0.00018035,2]
[388884085,1759464754028,-739.37,0.00018035,2]
[388884086,1759464754058,-500.0,0.00018035,2]
[388884087,1759464754089,-500.0,0.00018035,2]
[388884088,1759464754119,-617.66,0.00018035,2]
[388884089,1759464754248,-1421.90042058,0.00018036,2]
[388884090,1759464755543,-500.0,0.00018035,2]
[388884091,1759464755572,-2956.80957942,0.00018036,2]
[388884092,1759464755601,-300.0,0.00018036,2]
[388884093,1759464755632,-626.41084116,0.00018036,2]
[388884094,1759464755751,-1233.56915884,0.00018036,2]
[388884095,1759464759571,-500.0,0.00018036,2]
[388884096,1759464759599,-535.19,0.00018036,2]
[388884097,1759464759627,-500.0,0.00018036,2]
[388884098,1759464759655,-853.66,0.00018036,2]
[388884099,1759464759685,-787.72,0.00018036,2]
[388884100,1759464759712,-500.0,0.00018036,2]
[388884101,1759464759740,-740.02,0.00018036,2]
[388884102,1759464759769,-500.0,0.00018036,2]
[388884103,1759464759900,-166.83,0.00018037,2]
[388884104,1759464761895,-500.0,0.00018034,2]
[388884105,1759464761922,-500.0,0.00018034,2]
[388884106,1759464761952,-500.0,0.00018035,2]
[388884107,1759464761980,-2275.46,0.00018035,2]
[388884108,1759464762009,-828.51903521,0.00018037,2]
[388884109,1759464762120,-792.05192958,0.00018034,2]
[388884110,1759464763719,-450.38807042,0.00018034,2]
[388884111,1759464763749,-827.61,0.00018037,2]
[388884112,1759464763779,-1874.66,0.00018037,2]
[388884113,1759464763806,-500.0,0.00018037,2]
[388884114,1759464763837,-209.62385916,0.00018037,2]
[388884115,1759464763913,-2275.44614084,0.00018037,2]
[388884116,1759464763968,-500.0,0.00018037,2]
[388884117,1759464763998,-500.0,0.00018037,2]
[388884118,1759464764025,-582.75,0.00018037,2]
[388884119,1759464764054,-500.0,0.00018037,2]
[388884120,1759464764083,-500.0,0.00018037,2]
[388884121,1759464764110,-500.0,0.00018037,2]
[388884122,1759464764141,-500.0,0.00018037,2]
[388884123,1759464764170,-500.0,0.00018037,2]
[388884124,1759464764200,-500.0,0.00018037,2]
[388884125,1759464764231,-334.51,0.00018037,2]
[388884126,1759464764329,-165.49,0.00018037,2]
[388884127,1759464764358,-487.48408744,0.00018037,2]
[388884128,1759464764386,-500.0,0.00018037,2]
[388884129,1759464764414,-500.0,0.00018037,2]
[388884130,1759464764444,-500.0,0.00018037,2]
[388884131,1759464764475,-500.0,0.00018037,2]
[388884132,1759464764502,-500.0,0.00018037,2]
[388884133,1759464764531,-500.0,0.00018037,2]
[388884134,1759464764558,-500.0,0.00018037,2]
[388884135,1759464764588,-500.0,0.00018037,2]
[388884136,1759464764616,-194.06182512,0.00018037,2]
[388884137,1759464764742,-305.93817488,0.00018037,2]
[388884138,1759464764771,-499.96178814,0.00018037,2]
[388884139,1759464764799,-194.85144967,0.00018037,2]
[388884140,1759464764826,-491.34018268,0.00018037,2]
[388884141,1759464764854,-500.0,0.00018037,2]
[388884142,1759464764882,-500.0,0.00018037,2]
[388884143,1759464764910,-500.0,0.00018037,2]
[388884144,1759464764937,-500.0,0.00018037,2]
[388884145,1759464764965,-500.0,0.00018037,2]
[388884146,1759464764994,-500.0,0.00018037,2]
[388884147,1759464765024,-500.0,0.00018037,2]
[388884148,1759464765510,-9.44944187,0.00018038,2]
[388884149,1759464765528,-490.55055813,0.00018038,2]
[388884150,1759464765537,-9.44944187,0.00018038,2]
[388884151,1759464765561,-15.82680926,0.00018037,2]
[388884152,1759464765760,-500.0,0.00018035,2]
[388884153,1759464765789,-184.17319074,0.00018037,2]
[388884154,1759464765816,-490.55055813,0.00018038,2]
[388884155,1759464765843,-500.0,0.00018038,2]
[388884156,1759464765871,-500.0,0.00018038,2]
[388884157,1759464765899,-500.0,0.00018038,2]
[388884158,1759464765927,-151.0,0.00018038,2]
[388884159,1759464765955,-151.0,0.00018038,2]
[388884160,1759464765984,-151.0,0.00018038,2]
[388884161,1759464766013,-151.0,0.00018038,2]
[388884162,1759464766041,-227.25856567,0.00018038,2]
[388884163,1759464766069,-804.39,0.00018038,2]
[388884164,1759464766258,-500.0,0.00018038,2]
[388884165,1759464766375,-868.72,0.00018038,2]
[388884166,1759464766402,-500.0,0.00018038,2]
[388884167,1759464766431,-1181.35,0.00018038,2]
[388884168,1759464766458,-151.0,0.00018038,2]
[388884169,1759464766487,-967.37,0.00018038,2]
[388884170,1759464766515,-704.5,0.00018038,2]
[388884171,1759464766544,-151.0,0.00018038,2]
[388884172,1759464766572,-152.575299,0.00018038,2]
[388884173,1759464766600,-146.979402,0.00018038,2]
[388884174,1759464767018,-79.71066992,0.00018038,2]
[388884175,1759464767032,-152.575299,0.00018038,2]
[388884176,1759464767051,-120.73462908,0.00018038,2]
[388884177,1759464767061,-379.26537092,0.00018038,2]
[388884178,1759464773751,-500.0,0.00018034,2]
[388884179,1759464773783,-1755.26,0.00018035,2]
[388884180,1759464773813,-523.55,0.00018035,2]
[388884181,1759464773841,-507.51,0.00018035,2]
[388884182,1759464773871,-770.87,0.00018036,2]
[388884183,1759464773901,-175.6861938,0.00018036,2]
[388884184,1759464773930,-120.73462908,0.00018038,2]
[388884185,1759464773959,-428.96835424,0.00018038,2]
[388884186,1759464774054,-434.85164576,0.00018038,2]
[388884187,1759464774082,-884.58,0.00018038,2]
[388884188,1759464774112,-500.0,0.00018038,2]
[388884189,1759464774142,-500.0,0.00018038,2]
[388884190,1759464774172,-152.18991,0.00018038,2]
[388884191,1759464774202,-151.0,0.00018038,2]
[388884192,1759464774231,-605.09,0.00018038,2]
[388884193,1759464774260,-500.0,0.00018038,2]
[388884194,1759464774287,-152.457783,0.00018038,2]
[388884195,1759464774314,-500.0,0.00018038,2]
[388884196,1759464774342,-161.072881,0.00018038,2]
[388884197,1759464774370,-417.52556048,0.00018038,2]
[388884198,1759464774479,-82.47443952,0.00018038,2]
[388884199,1759464774505,-500.0,0.00018038,2]
[388884200,1759464774531,-692.76,0.00018038,2]
[388884201,1759464774558,-735.15,0.00018038,2]
[388884202,1759464774775,-621.7,0.00018038,2]
[388884203,1759464774803,-500.0,0.00018038,2]
[388884204,1759464774830,-921.87,0.00018038,2]
[388884205,1759464774859,-500.0,0.00018038,2]
[388884206,1759464774885,-392.10112096,0.00018038,2]
[388884207,1759464775012,-107.89887904,0.00018038,2]
[388884208,1759464775040,-562.0,0.00018038,2]
[388884209,1759464775068,-830.25,0.00018038,2]
[388884210,1759464775094,-151.0,0.00018038,2]
[388884211,1759464775121,-151.0,0.00018038,2]
[388884212,1759464775150,-151.0,0.00018038,2]
[388884213,1759464775178,-853.31,0.00018038,2]
[388884214,1759464775206,-151.0,0.00018038,2]
[388884215,1759464775234,-151.0,0.00018038,2]
[388884216,1759464775263,-500.0,0.00018038,2]
[388884217,1759464775289,-500.0,0.00018038,2]
[388884218,1759464775318,-607.6,0.00018038,2]
[388884219,1759464775345,-67.89224192,0.00018038,2]
[388884220,1759464776258,-432.10775808,0.00018038,2]
[388884221,1759464776267,-125.49283732,0.00018038,2]
[388884222,1759464776280,-479.30716268,0.00018038,2]
[388884223,1759464776289,-20.69283732,0.00018038,2]
[388884224,1759464779688,300.0,0.00018,2]
[388884225,1759464783836,-2380.17,0.00018035,2]
[388884226,1759464783872,-741.58,0.00018036,2]
[388884227,1759464783906,-500.0,0.00018036,2]
[388884228,1759464783938,-502.42419369,0.00018036,2]
[388884229,1759464783969,-500.0,0.00018036,2]
[388884230,1759464784003,-300.0,0.00018036,2]
[388884231,1759464784134,-500.0,0.00018036,2]
[388884232,1759464784173,-500.0,0.00018037,2]
[388884233,1759464784216,-500.0,0.00018037,2]
[388884234,1759464784258,-500.0,0.00018037,2]
[388884235,1759464784298,-500.0,0.00018037,2]
[388884236,1759464784336,-203.66304705,0.00018037,2]
[388884237,1759464784374,-479.30716268,0.00018038,2]
[388884238,1759464784410,-500.0,0.00018038,2]
[388884239,1759464784447,-500.0,0.00018038,2]
[388884240,1759464784482,-688.08,0.00018038,2]
[388884241,1759464784519,-106.90958054,0.00018038,2]
[388884242,1759464784882,-44.09041946,0.00018038,2]
[388884243,1759464784895,-21.35444994,0.00018038,2]
[388884244,1759464784918,-151.0,0.00018038,2]
[388884245,1759464786035,-327.64555006,0.00018038,2]
[388884246,1759464786419,-1756.91,0.00018038,2]
[388884247,1759464786446,-190.93221976,0.00018038,2]
[388884248,1759464786474,-151.0,0.00018038,2]
[388884249,1759464786504,-500.0,0.00018039,2]
[388884250,1759464786533,-968.81,0.00018039,2]
[388884251,1759464786560,-500.0,0.00018039,2]
[388884252,1759464786587,-500.0,0.00018039,2]
[388884253,1759464786786,-209.41446036,0.00018035,2]
[388884254,1759464787377,20176.7197059,0.00017936,2]
[388884255,1759464789940,-721.94553964,0.00018035,2]
[388884256,1759464789973,-1687.75,0.00018035,2]
[388884257,1759464790006,-524.57077631,0.00018036,2]
[388884258,1759464790047,-1000.0,0.00018037,2]
[388884259,1759464790077,-500.0,0.00018039,2]
[388884260,1759464790106,-424.1373681,0.00018039,2]
[388884261,1759464790225,-283.2026319,0.00018039,2]
[388884262,1759464790255,-1155.46,0.00018039,2]
[388884263,1759464790285,-500.0,0.00018039,2]
[388884264,1759464790315,-500.0,0.00018039,2]
[388884265,1759464790346,-618.01,0.00018039,2]
[388884266,1759464790376,-355.37483475,0.00018039,2]
[388884267,1759464790404,-613.25706748,0.00018039,2]
[388884268,1759464790433,-500.0,0.00018039,2]
[388884269,1759464790460,-223.00093174,0.00018039,2]
[388884270,1759464790674,-60.20170016,0.00018039,2]
[388884271,1759464790694,-443.1973681,0.00018039,2]
[388884272,1759464790703,-283.2026319,0.00018039,2]
[388884273,1759464791933,-1859.19,0.00018036,2]
[388884274,1759464791963,-216.7973681,0.00018039,2]
[388884275,1759464791991,-500.0,0.00018039,2]
[388884276,1759464792019,-905.36,0.00018039,2]
[388884277,1759464792048,-500.0,0.00018039,2]
[388884278,1759464792076,-940.2652638,0.00018039,2]
[388884279,1759464792172,-156.7847362,0.00018039,2]
[388884280,1759464792200,-500.0,0.00018039,2]
[388884281,1759464792231,-500.0,0.00018039,2]
[388884282,1759464792265,-500.0,0.00018039,2]
[388884283,1759464792295,-500.0,0.00018039,2]
[388884284,1759464792324,-500.0,0.00018039,2]
[388884285,1759464792353,-500.0,0.00018039,2]
[388884286,1759464792383,-500.0,0.00018039,2]
[388884287,1759464792410,-904.32,0.00018039,2]
[388884288,1759464792437,-152.241499,0.00018039,2]
[388884289,1759464792464,-73.3175296,0.00018039,2]
[388884290,1759464792922,-83.4672066,0.00018039,2]
[388884291,1759464792941,-343.2152638,0.00018039,2]
[388884292,1759464792951,-156.7847362,0.00018039,2]
[388884293,1759464799216,5000.0,0.00018011,2]
[388884294,1759464814923,5000.0,0.00018011,2]
[388884295,1759464823565,5000.0,0.00018011,2]
[388884296,1759464826296,-2149.0,0.00018034,2]
[388884297,1759464826325,-633.55,0.00018034,2]
[388884298,1759464826353,-388.04042058,0.00018034,2]
[388884299,1759464826381,-1045.17,0.00018035,2]
[388884300,1759464826411,-648.61915884,0.00018035,2]
[388884301,1759464826505,-271.25084116,0.00018035,2]
[388884302,1759464830244,-500.0,0.00018035,2]
[388884303,1759464830275,-1863.52,0.00018035,2]
[388884304,1759464830307,-500.0,0.00018035,2]
[388884305,1759464830337,-1883.79,0.00018036,2]
[388884306,1759464830367,-5.39,0.00018036,2]
[388884307,1759464830454,-494.61,0.00018036,2]
[388884308,1759464832276,-928.44,0.00018036,2]
[388884309,1759464832308,-1132.13,0.00018036,2]
[388884310,1759464832339,-677.87,0.00018036,2]
[388884311,1759464832371,-500.0,0.00018036,2]
[388884312,1759464832400,-1107.31,0.00018036,2]
[388884313,1759464832428,-381.45,0.00018036,2]
[388884314,1759464832529,-545.61,0.00018036,2]
[388884315,1759464838968,4959.63589671,0.00018011,2]
[388884316,1759464843853,300.0,0.00018,2]
[388884317,1759464844415,168.0,0.00018006,2]
[388884318,1759464854710,300.0,0.00018,2]
[388884319,1759464860313,160.23830574,0.00017937,2]
[388884320,1759464865577,300.0,0.00018,2]
[388884321,1759464865869,-1568.16,0.00018034,2]
[388884322,1759464865896,-1108.78,0.00018034,2]
[388884323,1759464865926,-500.0,0.00018035,2]
[388884324,1759464865954,-626.15,0.00018035,2]
[388884325,1759464865983,-648.31,0.00018035,2]
[388884326,1759464866013,-500.0,0.00018035,2]
[388884327,1759464866147,-97.21,0.00018035,2]
[388884328,1759464869548,-500.0,0.00018034,2]
[388884329,1759464869577,-402.79,0.00018035,2]
[388884330,1759464869605,-500.0,0.00018035,2]
[388884331,1759464869632,-1285.68,0.00018035,2]
[388884332,1759464869660,-1019.62,0.00018035,2]
[388884333,1759464869688,-1257.79,0.00018035,2]
[388884334,1759464869823,-68.25,0.00018035,2]
[388884335,1759464871599,-2671.22,0.00018034,2]
[388884336,1759464871629,-768.39,0.00018035,2]
[388884337,1759464871658,-500.0,0.00018035,2]
[388884338,1759464871686,-500.0,0.00018036,2]
[388884339,1759464871717,-300.0,0.00018036,2]
[388884340,1759464871747,-20.79,0.00018036,2]
[388884341,1759464871867,-479.21,0.00018036,2]
[388884342,1759464873753,-500.0,0.00018034,2]
[388884343,1759464873782,-500.0,0.00018036,2]
[388884344,1759464873810,-592.7,0.00018036,2]
[388884345,1759464873838,-592.26,0.00018036,2]
[388884346,1759464873864,-500.0,0.00018036,2]
[388884347,1759464873890,-500.0,0.00018036,2]
[388884348,1759464873918,-161.91414948,0.00018036,2]
[388884349,1759464873947,-268.54242673,0.00018037,2]
[388884350,1759464873976,-500.0,0.00018038,2]
[388884351,1759464874004,-500.0,0.00018038,2]
[388884352,1759464874033,-269.17684758,0.00018038,2]
[388884353,1759464874510,-230.82315242,0.00018038,2]
[388884354,1759464874537,-500.0,0.00018038,2]
[388884355,1759464874564,-417.98695291,0.00018038,2]
[388884356,1759464874593,-500.0,0.00018038,2]
[388884357,1759464874625,-500.0,0.00018038,2]
[388884358,1759464874653,-500.0,0.00018038,2]
[388884359,1759464874682,-500.0,0.00018038,2]
[388884360,1759464874713,-500.0,0.00018038,2]
[388884361,1759464874742,-500.0,0.00018038,2]
[388884362,1759464874773,-500.0,0.00018038,2]
[388884363,1759464874806,-202.38978934,0.00018038,2]
[388884364,1759464875191,-297.61021066,0.00018038,2]
[388884365,1759464875221,-500.0,0.00018038,2]
[388884366,1759464875249,-500.0,0.00018038,2]
[388884367,1759464875278,-500.0,0.00018038,2]
[388884368,1759464875310,-632.09868031,0.00018038,2]
[388884369,1759464875337,-500.0,0.00018038,2]
[388884370,1759464875364,-426.63528414,0.00018038,2]
[388884371,1759464875392,-500.0,0.00018038,2]
[388884372,1759464875421,-500.0,0.00018038,2]
[388884373,1759464875449,-500.0,0.00018038,2]
[388884374,1759464875535,-500.0,0.00018038,2]
[388884375,1759464875562,-500.0,0.00018038,2]
[388884376,1759464875589,-500.0,0.00018038,2]
[388884377,1759464875618,-500.0,0.00018038,2]
[388884378,1759464875652,-500.0,0.00018038,2]
[388884379,1759464875679,-500.0,0.00018038,2]
[388884380,1759464875709,-500.0,0.00018038,2]
[388884381,1759464875738,-500.0,0.00018038,2]
[388884382,1759464875767,-500.0,0.00018038,2]
[388884383,1759464875797,-500.0,0.00018038,2]
[388884384,1759464876641,-314.22076035,0.00018035,2]
[388884385,1759464876650,-31.83485388,0.00018038,2]
[388884386,1759464876671,-468.16514612,0.00018038,2]
[388884387,1759464876680,-31.83485388,0.00018038,2]
[388884388,1759464876694,-0.01,0.00018038,2]
[388884389,1759464877678,-468.15514612,0.00018038,2]
[388884390,1759464877708,-500.0,0.00018038,2]
[388884391,1759464877739,-500.0,0.00018038,2]
[388884392,1759464877770,-500.0,0.00018038,2]
[388884393,1759464877802,-195.96187022,0.00018038,2]
[388884394,1759464877837,-500.0,0.00018038,2]
[388884395,1759464877866,-500.0,0.00018038,2]
[388884396,1759464877895,-416.06522075,0.00018038,2]
[388884397,1759464877923,-500.0,0.00018038,2]
[388884398,1759464877951,-500.0,0.00018038,2]
[388884399,1759464877980,-263.35670366,0.00018038,2]
[388884400,1759464878168,-312.9321185,0.00018038,2]
[388884401,1759464878196,-509.59019606,0.00018038,2]
[388884402,1759464878225,-500.0,0.00018038,2]
[388884403,1759464878253,-500.0,0.00018038,2]
[388884404,1759464878282,-500.0,0.00018038,2]
[388884405,1759464878311,-500.0,0.00018038,2]
[388884406,1759464878341,-500.0,0.00018038,2]
[388884407,1759464878372,-500.0,0.00018038,2]
[388884408,1759464878404,-500.0,0.00018038,2]
[388884409,1759464878431,-500.0,0.00018038,2]
[388884410,1759464878531,-500.0,0.00018038,2]
[388884411,1759464878561,-500.0,0.00018038,2]
[388884412,1759464878589,-500.0,0.00018038,2]
[388884413,1759464878617,-500.0,0.00018038,2]
[388884414,1759464878645,-500.0,0.00018038,2]
[388884415,1759464878674,-500.0,0.00018038,2]
[388884416,1759464878702,-500.0,0.00018038,2]
[388884417,1759464878732,-500.0,0.00018038,2]
[388884418,1759464878762,-500.0,0.00018038,2]
[388884419,1759464878795,-500.0,0.00018038,2]
[388884420,1759464879196,-167.89748938,0.00018038,2]
[388884421,1759464879211,-332.10251062,0.00018038,2]
[388884422,1759464879221,-167.89748938,0.00018038,2]
[388884423,1759464879236,-0.01,0.00018038,2]
[388884424,1759464883713,-500.0,0.00018034,2]
[388884425,1759464883740,-500.0,0.00018034,2]
[388884426,1759464883774,-552.24,0.00018035,2]
[388884427,1759464883805,-500.0,0.00018036,2]
[388884428,1759464883833,-500.0,0.00018036,2]
[388884429,1759464883876,-332.09251062,0.00018038,2]
[388884430,1759464883906,-558.58360617,0.00018038,2]
[388884431,1759464883934,-500.0,0.00018038,2]
[388884432,1759464883966,-500.0,0.00018038,2]
[388884433,1759464884000,-500.0,0.00018038,2]
[388884434,1759464884102,-500.0,0.00018038,2]
[388884435,1759464884131,-500.0,0.00018038,2]
[388884436,1759464884162,-500.0,0.00018038,2]
[388884437,1759464884389,-343.2152638,0.00018039,2]
[388884438,1759464884420,-500.0,0.00018039,2]
[388884439,1759464884452,-500.0,0.00018039,2]
[388884440,1759464884482,-1152.23,0.00018039,2]
[388884441,1759464884510,-500.0,0.00018039,2]
[388884442,1759464884540,-500.0,0.00018039,2]
[388884443,1759464884666,-634.42,0.00018038,2]
[388884444,1759464884694,-500.0,0.00018039,2]
[388884445,1759464884728,-153.062548,0.00018039,2]
[388884446,1759464884757,-241.23034448,0.00018039,2]
[388884447,1759464884786,-500.0,0.00018039,2]
[388884448,1759464884814,-500.0,0.00018039,2]
[388884449,1759464884842,-152.659975,0.00018039,2]
[388884450,1759464884869,-500.0,0.00018039,2]
[388884451,1759464884896,-500.0,0.00018039,2]
[388884452,1759464884923,-500.0,0.00018039,2]
[388884453,1759464884950,-500.0,0.00018039,2]
[388884454,1759464884978,-137.26426504,0.00018039,2]
[388884455,1759464885771,-28.63994356,0.00018039,2]
[388884456,1759464885788,-334.0957914,0.00018039,2]
[388884457,1759464885797,-165.9042086,0.00018039,2]
[388884458,1759464889778,-500.0,0.00018036,2]
[388884459,1759464889808,-500.0,0.00018038,2]
[388884460,1759464889836,-540.6957914,0.00018039,2]
[388884461,1759464889862,-500.0,0.00018039,2]
[388884462,1759464889890,-500.0,0.00018039,2]
[388884463,1759464889917,-500.0,0.00018039,2]
[388884464,1759464889944,-151.0,0.00018039,2]
[388884465,1759464889971,-598.87631002,0.00018039,2]
[388884466,1759464889998,-500.0,0.00018039,2]
[388884467,1759464890025,-525.05,0.00018039,2]
[388884468,1759464890139,-500.0,0.00018039,2]
[388884469,1759464890166,-500.0,0.00018039,2]
[388884470,1759464890195,-500.0,0.00018039,2]
[388884471,1759464890224,-500.0,0.00018039,2]
[388884472,1759464890254,-542.98,0.00018039,2]
[388884473,1759464890295,-500.0,0.00018039,2]
[388884474,1759464890329,-618.1,0.00018039,2]
[388884475,1759464890357,-500.0,0.00018039,2]
[388884476,1759464890384,-739.6,0.00018039,2]
[388884477,1759464890963,-368.76579716,0.00018039,2]
[388884478,1759464890978,-198.65,0.00018039,2]
[388884479,1759464897929,-500.0,0.00018035,2]
[388884480,1759464897957,-557.71,0.00018035,2]
[388884481,1759464897984,-500.0,0.00018035,2]
[388884482,1759464898012,-500.0,0.00018035,2]
[388884483,1759464898040,-500.0,0.00018036,2]
[388884484,1759464898069,-500.0,0.00018038,2]
[388884485,1759464898097,-27.52420284,0.00018039,2]
[388884486,1759464898125,-500.0,0.00018039,2]
[388884487,1759464898152,-500.0,0.00018039,2]
[388884488,1759464898181,-500.0,0.00018039,2]
[388884489,1759464898209,-329.54159432,0.00018039,2]
[388884490,1759464898390,-170.45840568,0.00018039,2]
[388884491,1759464898418,-732.91,0.00018039,2]
[388884492,1759464898447,-500.0,0.00018039,2]
[388884493,1759464898477,-500.0,0.00018039,2]
[388884494,1759464898505,-151.0,0.00018039,2]